Cogmind - Beta 13 @@@ ROGUE MODE // 2024.07.03 @ 20:47:20 Player: AntiGoose Result: Destroyed by G-47 Trooper with Particle Gun Performance ------------- Evolutions (2) 1000 Regions Visited (3) 600 Robots Destroyed (32) 160 Value Destroyed (888) 888 Prototype IDs (0) 0 Alien Tech Used (0) 0 Bonus (0) 0 TOTAL SCORE: 2648 Bonus ------- None Cogmind --------- Core Integrity 0/550 Matter 119/300 Energy 61/100 System Corruption 0% Temperature Warm (157) Movement Core (50) Location -8/Materials Parts ------- > --- POWER (2) -------- (None) > --- PROPULSION (2) --- (None) > --- UTILITY (3) ------ Hacking Suite > --- WEAPON (4) ------- (None) > --- INVENTORY (5) ---- Disposable Heat Sink High-capacity Matter Pod (28) Reaction Control System Light Armor Plating EM Pulse Cannon Peak State ------------ > --- POWER ------------ Nuclear Core Nuclear Core > --- PROPULSION ------- Light Treads Light Treads > --- UTILITY ---------- Huge Storage Unit Targeting Computer Hacking Suite > --- WEAPON ----------- Field Laser Beam Cannon Assault Rifle Rocket Launcher > --- INVENTORY -------- Disposable Heat Sink High-capacity Matter Pod Light Armor Plating [Rating: 20] Favorites ----------- Power Ion Engine Engine Ion Engine Power Core Nuclear Core Propulsion Light Treads Treads Light Treads Utility Huge Storage Unit Storage Huge Storage Unit Processor Targeting Computer Hackware Hacking Suite Protection Weapon Shielding Weapon Assault Rifle Energy Gun Field Laser Energy Cannon Beam Cannon Ballistic Gun Assault Rifle Launcher Grenade Launcher Build | -11 -10 -9 -8 ------- Run | Yrd Mat Mat Mat Slots Evolved 4 | . . 2 2 Power 1 | . . . 1 Propulsion . | . . . . Utility 1 | . . 1 . Weapon 2 | . . 1 1 Parts Attached 21 | 6 3 9 3 Power 3 | 1 . 1 1 Engine 1 | 1 . . . Core 2 | . . 1 1 Reactor . | . . . . Propulsion 4 | 2 . 2 . Treads 4 | 2 . 2 . Leg . | . . . . Wheel . | . . . . Hover . | . . . . Flight . | . . . . Utility 6 | 1 2 3 . Device . | . . . . Storage 2 | 1 1 . . Processor 2 | . 1 1 . Hackware 1 | . . 1 . Protection 1 | . . 1 . Artifact . | . . . . Weapon 8 | 2 1 3 2 Energy Gun 1 | . . . 1 Energy Cannon 2 | . . 1 1 Ballistic Gun 3 | 2 . 1 . Ballistic Cannon . | . . . . Launcher 2 | . 1 1 . Special Weapon . | . . . . Impact Weapon . | . . . . Slashing Weapon . | . . . . Piercing Weapon . | . . . . Special Melee Weapon . | . . . . Unidentified Prototypes . | . . . . Parts Lost 13 | . . 2 11 Power 2 | . . . 2 Propulsion 3 | . . 1 2 Utility 2 | . . . 2 Weapon 6 | . . 1 5 Highest Loss Streak 11 | . . 2 11 To Critical Strikes . | . . . . Average Slot Usage (%) 96 | . 98 96 94 Engine 8 | . 14 7 . Core 4 | . . 3 16 Treads 22 | . 28 18 16 Storage 11 | . 14 11 8 Processor 12 | . 12 14 8 Hackware 2 | . . 2 9 Protection 1 | . . 4 . Energy Gun 1 | . . . 8 Energy Cannon 5 | . . 11 8 Ballistic Gun 12 | . 14 13 8 Launcher 10 | . 13 8 8 Naked Turns . | . . . . Heaviest Build 106 | 13 90 96 106 Greatest Support 40 | 40 40 40 40 Greatest Overweight (x) 29 | 3 2 4 29 Average Overweight (x) 1 | . 1 2 2 Largest Inventory Capacity 25 | 8 25 25 25 Average Capacity 23 | 7 23 25 24 Most Carried 6 | 2 5 6 5 Average Carried 3 | 1 3 3 3 Final Capacity 25 | 8 25 25 5 Final Carried 5 | 1 5 5 5 Class Distribution -------------------- 53% | Gunner 46% | Mutant Dominant Class ---------------- Mutant | -10/Materials Gunner | -9/Materials Gunner | -8/Materials Resources | -11 -10 -9 -8 ----------- Run | Yrd Mat Mat Mat Matter Collected 690 | 260 91 230 109 Remotely . | . . . . Salvage Created 830 | . 129 399 302 Parts 60 | . 9 34 17 Haulers Intercepted 1 | . . . 1 Recyclers Shooed 1 | . . 1 . Parts Field Recycled . | . . . . Retrieved Matter . | . . . . Parts Self-Destructed . | . . . . Prevented . | . . . . Kills | -11 -10 -9 -8 ------- Run | Yrd Mat Mat Mat Combat Hostiles Destroyed 22 | . 5 11 6 Guns 11 | . 4 5 2 Cannons 5 | . . 3 2 AOE 6 | . 1 3 2 Classes Destroyed 8 | . 4 3 1 Worker 4 | . 1 2 1 Builder 1 | . . 1 . Hauler 1 | . . . 1 Recycler 1 | . . 1 . Watcher 3 | . 1 2 . Swarmer 7 | . 3 4 . Grunt 13 | . 2 6 5 Sentry 2 | . . 1 1 Best Kill Streak 5 | . 4 5 5 Combat Bots Only 4 | . 3 4 3 Max Kills in Single Turn 5 | . 2 5 2 Gunslinging . | . . . . Exploded 2 | . 1 2 1 Melee . | . . . . Uniques/NPCs Destroyed . | . . . . Combat | -11 -10 -9 -8 -------- Run | Yrd Mat Mat Mat Hostile Shots Fired 221 | . 31 80 110 Missed 53 | . 6 19 28 Damage Taken 2242 | . 212 663 1367 Core 755 | . 54 144 557 Absorbed by Shields . | . . . . Redirected to Shielding 44 | . . 44 . Regen/Repaired (Parts) 108 | . . 108 . Core Remaining (%) 80 | 100 78 64 . Volleys Fired 68 | . 18 30 20 Largest 4 | . 2 3 4 Hottest 176 | . 50 113 176 Shots Fired 149 | . 23 76 50 Gun 86 | . 18 37 31 Cannon 41 | . . 29 12 Launcher 22 | . 5 10 7 Special . | . . . . Kinetic 70 | . 18 37 15 Thermal 57 | . . 29 28 Explosive 22 | . 5 10 7 Electromagnetic . | . . . . Robot Hit Streak 11 | . 4 11 10 Robot Miss Streak 7 | . 2 7 4 Penetration Max . | . . . . Secondary Targets . | . . . . Shots Hit Robots 71 | . 10 34 27 Core Hits 46 | . 10 22 14 Critical Kills . | . . . . Critical Parts Destroyed . | . . . . Critical Strikes 1 | . . . 1 Burn 1 | . . . 1 Melee Attacks . | . . . . Impact . | . . . . Slashing . | . . . . Piercing . | . . . . Sneak Attacks . | . . . . Combat Hostiles . | . . . . Follow-up Attacks . | . . . . Damage Inflicted 2136 | . 348 1010 778 Guns 624 | . 106 222 296 Cannons 337 | . . 245 92 Explosions 1175 | . 242 543 390 Melee . | . . . . Ramming . | . . . . Kinetic 420 | . 106 222 92 Thermal 724 | . . 245 479 Explosive 992 | . 242 543 207 Electromagnetic . | . . . . Impact . | . . . . Slashing . | . . . . Piercing . | . . . . Highest Corruption . | . . . . Average Corruption . | . . . . Corruption Purged . | . . . . Corruption Blocked . | . . . . Overload Shots . | . . . . Overflow Damage 70 | . . 24 46 Projectiles . | . . . . Explosions 70 | . . 24 46 Melee . | . . . . Knockbacks . | . . . . Impact . | . . . . Kinetic . | . . . . Secondary . | . . . . Self-Inflicted Damage 210 | . . 119 91 Shots 6 | . . 4 2 Rammed . | . . . . Targets Rammed . | . . . . Kicked . | . . . . Crushed . | . . . . Highest Temperature 630 | . 2 177 630 Average Temperature 177 | . 2 44 316 Received Heat Transfer 831 | . 24 78 729 Effects 25 | . . . 25 Shutdowns 7 | . . . 7 Energy Bleed 1 | . . . 1 Interference 3 | . . . 3 Matter Decay 2 | . . . 2 Short Circuit 3 | . . . 3 Damage (minor) 4 | . . . 4 Damage (major) 5 | . . . 5 Siege Activations . | . . . . Robots Corrupted . | . . . . Combat Hostiles . | . . . . Parts Fried . | . . . . Impact Corruptions . | . . . . Robots Melted . | . . . . Combat Hostiles . | . . . . Parts Melted 1 | . . . 1 Heat Transferred 1284 | . . 518 766 Parts Sabotaged . | . . . . Parts Stolen . | . . . . Parts Stripped . | . . . . Power Chain Reactions . | . . . . Alert | -11 -10 -9 -8 ------- Run | Yrd Mat Mat Mat Peak Influence 271 | . 89 234 271 Initial 44 | . . 1 44 Average 46 | . 16 75 64 Maximum Alert Level 1 | . . 1 1 Low Security (%) 96 | 100 100 98 87 Level 1 3 | . . 1 12 Level 2 . | . . . . Level 3 . | . . . . Level 4 . | . . . . Level 5 . | . . . . High Security . | . . . . Max Security . | . . . . Squads Dispatched 4 | . . 2 2 Investigation 1 | . . 1 . Extermination . | . . . . Reinforcement 2 | . . 1 1 Assault . | . . . . Garrison 1 | . . . 1 Intercept . | . . . . Searches Triggered . | . . . . Construction Impeded 2 | . . 1 1 Haulers Reinforced . | . . . . Active Scanning Responses . | . . . . Cargo Convoy Interrupts . | . . . . Stealth | -11 -10 -9 -8 --------- Run | Yrd Mat Mat Mat Distress Signals 7 | . 1 3 3 Communications Jammed . | . . . . Distress Signals . | . . . . Times Spotted 43 | . 8 21 14 Peak Tracking Total 9 | . 4 5 9 Tactical Retreats . | . . . . Traps | -11 -10 -9 -8 ------- Run | Yrd Mat Mat Mat Traps Triggered . | . . . . Indirectly . | . . . . Trap Hack Attempts . | . . . . Triggered . | . . . . Disarmed . | . . . . Reprogrammed . | . . . . Reused . | . . . . Traps Extracted . | . . . . Installed . | . . . . Triggered . | . . . . Machines | -11 -10 -9 -8 ---------- Run | Yrd Mat Mat Mat Machines Disabled 13 | . 1 6 6 Max in Single Turn 3 | . 1 3 2 Machines Repaired . | . . . . Machines Dismantled . | . . . . Machines Sabotaged . | . . . . Overloaded Fab Kills . | . . . . Hacking | -11 -10 -9 -8 --------- Run | Yrd Mat Mat Mat Machines Accessed 5 | . 1 3 1 Terminals 4 | . 1 2 1 Fabricators . | . . . . Repair Stations 1 | . . 1 . Recycling Units . | . . . . Scanalyzers . | . . . . Garrison Access . | . . . . Total Hacks 19 | . 4 12 3 Successful 7 | . 2 4 1 Failed 12 | . 2 8 2 Catastrophic . | . . . . Database Lockouts . | . . . . Manual . | . . . . Terminals 13 | . 4 6 3 Fabricators . | . . . . Repair Stations 6 | . . 6 . Recycling Units . | . . . . Scanalyzers . | . . . . Garrison Access . | . . . . Terminal Hacks 4 | . 2 1 1 Emergency Access Points 1 | . . 1 . Locate Traps 1 | . . . 1 Dispatch Records 1 | . 1 . . Zone Layout 1 | . 1 . . Fabricator Hacks . | . . . . Repair Station Hacks 3 | . . 3 . Scan Component 2 | . . 2 . Repair 1 | . . 1 . Recycling Unit Hacks . | . . . . Scanalyzer . | . . . . Garrison Access Hacks . | . . . . Unauthorized Hacks . | . . . . Terminals . | . . . . Fabricators . | . . . . Repair Stations . | . . . . Recycling Units . | . . . . Scanalyzers . | . . . . Garrison Access . | . . . . Data Cores Recovered . | . . . . Used . | . . . . Hacking Detections 4 | . . 3 1 Full Trace Events 2 | . . 2 . Feedback Events . | . . . . Feedback Blocked . | . . . . Robot Schematics Acquired . | . . . . Robots Built . | . . . . Authchips . | . . . . Time . | . . . . Total Robot Build Rating . | . . . . Part Schematics Acquired . | . . . . Parts Built . | . . . . Authchips . | . . . . Time . | . . . . Total Part Build Rating . | . . . . Parts Repaired 1 | . . 1 . Time 26 | . . 26 . Parts Recycled . | . . . . Recycled Matter . | . . . . Retrieved Matter . | . . . . Retrieved Components . | . . . . Parts Scanalyzed . | . . . . Part Schematics Acquired . | . . . . Parts Damaged . | . . . . Bothacking | -11 -10 -9 -8 ------------ Run | Yrd Mat Mat Mat Used RIF Installer . | . . . . Robots Hacked . | . . . . Non-combat . | . . . . Combat . | . . . . Robot Hacks Applied . | . . . . Relay Couplers Released . | . . . . Fabnet Peak Effective % . | . . . . Robots Rewired . | . . . . Allies Hacked . | . . . . Hacks Repelled . | . . . . Allies | -11 -10 -9 -8 -------- Run | Yrd Mat Mat Mat Total Allies . | . . . . Largest Group . | . . . . Highest-Rated Group . | . . . . Highest-Rated Ally . | . . . . Total Orders . | . . . . Ally Attacks . | . . . . Total Damage . | . . . . Kills . | . . . . Allies Corrupted . | . . . . Allies Melted . | . . . . Intel | -11 -10 -9 -8 ------- Run | Yrd Mat Mat Mat Robot Analysis Total . | . . . . Derelict Logs Recovered . | . . . . Drone Launches . | . . . . Drone Recoveries . | . . . . Exploration | -11 -10 -9 -8 ------------- Run | Yrd Mat Mat Mat Turns Passed 3160 | 91 1331 1080 658 Spaces Moved 926 | 50 430 268 178 Core 13 | 9 . . 4 Treads 913 | 41 430 268 174 Legs . | . . . . Wheels . | . . . . Hover . | . . . . Flight . | . . . . Fastest Speed 50 | 50 160 320 50 Average Speed 311 | 157 298 349 330 Slowest Speed 1500 | 200 320 480 1500 Overloaded Moves . | . . . . Propulsion Burnouts . | . . . . Robots Hopped . | . . . . Cave-ins Triggered . | . . . . Exploration Rate (%) 25 | 4 49 29 19 Regions Visited 3 Branch Regions . Pre-discovered Areas . | . . . . Known Exits Taken . | . . . . Unknown Exits Taken 3 | 1 1 1 . Scrap Searched . | . . . . Spaces Dug 21 | . 14 7 . Terrain Destroyed 156 | . 42 57 57 Melee . | . . . . Projectile 1 | . . . 1 AOE 155 | . 42 57 56 Terrain Rammed . | . . . . Walls Destroyed . | . . . . Machines Disabled . | . . . . Actions | -11 -10 -9 -8 --------- Run | Yrd Mat Mat Mat Total 1082 | 62 459 352 209 Wait 32 | . . 27 5 Move 923 | 49 429 267 178 Hop . | . . . . Pick Up 29 | 7 7 12 3 Fast Attach . | . . . . Attach 17 | 6 2 6 3 Detach . | . . . . Swap 4 | . 1 3 . Drop 9 | . 2 7 . Fire 68 | . 18 30 20 Melee . | . . . . Ram . | . . . . Kick . | . . . . Crush . | . . . . Escape Stasis . | . . . . Rewire . | . . . . Trap . | . . . . Miscellaneous . | . . . . Route ------- -11/Scrapyard -10/Materials -9/Materials -8/Materials History --------- Turn | Location | Event 27 | -11/Scrapyard | Discovered new exit (range 15) 92 | -11/Scrapyard | Entered Materials 304 | -10/Materials | Build established: Mutant 1321 | -10/Materials | Discovered new exit (range 16) 1423 | -10/Materials | Entered another Materials area 1423 | -9/Materials | Evolved 2 slots: Utility x1, Weapon x1 1711 | -9/Materials | Build established: Gunner 1909 | -9/Materials | Repaired Lgt. Treads 2065 | -9/Materials | Discovered new exit (range 13) 2503 | -9/Materials | Entered another Materials area 2503 | -8/Materials | Evolved 2 slots: Power x1, Weapon x1 2623 | -8/Materials | Met 7R-MNS 3090 | -8/Materials | Garrison activated, responded to threat 3145 | -8/Materials | Core integrity fell below 50% 3155 | -8/Materials | Core integrity fell below 20% 3161 | -8/Materials | Destroyed by G-47 Trooper with Particle Gun Last Messages --------------- U-05 Engineer lays Concrete. K-01 Serf collects debris. U-05 Engineer lays Concrete. K-01 Serf collects debris. U-05 Engineer lays Concrete. K-01 Serf collects debris. U-05 Engineer lays Concrete. Broken Lgt. Treads destroyed. U-05 Engineer lays Concrete. Targeting Computer destroyed. Huge Storage Unit destroyed. Critical hit (Burn: +37). Acquired Hvy. Particle Cannon. G-47 Trooper destroyed. M-13 Machinist repairs G-50 Soldier. Critical hit (Burn: +37). G-47 Trooper destroyed. Hvy. Particle Cannon destroyed. Acquired EM Pulse Cannon. R-06 Scavenger collects Imp. Heat Sink. Map ----- +----------------------------------------------------+ | ?????????????????????????????????????????????????? | | ?????????????????????????????????????????????????? | | ?????????????????????????????????????????????????? | | ?????????????????????????????????????????????????? | | ?????????????????????????????????????????????????? | | ?????????????????????????????????????????????????? | | ?????????????????????????????????????????????????? | | ?????????????????????????????????????????????????? | | ??????????????????????????????????????????##+##### | | ?????????????????????????????????????????? | | ????????????????????????????????????????? """ """ | | ?????????????????????????????????????????""""""""" | | ???????????????????????????????????????????"""" " | | ????????????????????????????????????????????? | | ??????????????????????????????????????#########+## | | ???????????????????????????????# + | | ??????????????????????????????????????######### | | ??????????????????????????????????????????????# | | ??????????????????????????????????????????????# | | ??????????????????????????????????????????????# | | ??????????????????????????????????????????????# | | ??????????????????????????????????????????????# | | ?????????????????????##########???????????????# | | ?????????????????????# = #???????????????# | | ????????????????# ??## #???????????????#### | | ????????????????# ?#; @ = #??????##+##??????# | | ????????????????# ##Y ####???# ######## | | ????????????????# g%= + ?? | | ????????????????# Y##[%= #??????# | | ????????????????+ ???#m* ===#??????# | | ?????????????????????#= g ===#??????# """"""" | | ????????????????# ???# g == ##?????# """"""" | | ????????????????# ###/############## """"""" | | ????????????????# r """"""" | | ????????????????# """"""" | | ????????????????# | | ????????????????# | | ????????????????# # """"#####"T"#### | | ????????????????# " "#???#"""#??? | | ??????????????? # " " #??#####??? | | ????????????? "##?????????? | | ?????????^^?== " #?????????? | | ???^???????? " #?????????? | | ?????????????= # "##?????????? | | ????????????? %= "#??????????? | | ?????????????? "#??????????? | | ???????????????? * "##???????????? | | ?????????????????? ?????????????? | | ????????????????????? ? ????????????????? | | ??????????????????????? ?????????????????????? | +----------------------------------------------------+ Best States ------------- Heat Dissipation 31 Energy Generation 23 Energy Capacity 380 Matter Stores 300 Matter Capacity 300 Sight Range 18 Terrain Scan Density 10 Weapon Shielding 33 Evasion (%) 50 Targeting Accuracy 5 Recoil Reduction 2 Offensive Hacking 10 Item Schematics ----------------- None Robot Schematics ------------------ None Fabricated ------------ Nothing Alien Tech Used ----------------- None Achievements -------------- None Challenges ------------ None Game ------ Seed IonPoweredFirepult Manual? 0 Play Time 00:16:29 Cumulative 4.5 hours Start 2024.07.03 @ 20:30:58 End 2024.07.03 @ 20:47:20 Sessions 1 Manual Loads 0 Difficulty Rogue Special Mode None Game No. 10 Rogue 4 Adventurer 6 Explorer 0 Win Type - Total 0 Types 0/0/0/0/0/0/0/0/0 Lore% 6 Gallery% 9 Achievement% 10 Wizard Run 0 Options --------- Layout 1 ASCII 0 Keyboard 0 Movement Mouse Keybinds 0 Fullscreen 1 Font 32/SmallcapsGlow Map View 50x35 Zoom Use 0% Tactical HUD 0 Map Filters NONE Filters NONE Steam 1 RUN: 5db46223-d9ac-47d8-b708-cfc804b2fa00